fUSD/lending_fUSD_20260123
["ID","MTS","AMOUNT","RATE_DAILY","PERIOD"]
[403096581,1769154642665,-1269.0,0.00017616,2]
[403096582,1769154642674,-1203.0,0.00017616,2]
[403096583,1769154642683,-6567.0,0.00017616,2]
[403096584,1769154642694,-567.0,0.00017616,2]
[403096585,1769154642703,-4829.0,0.00017616,2]
[403096586,1769154642714,-1034.00491107,0.00017626,2]
[403096587,1769154642723,-193.033,0.00017627,2]
[403096588,1769154642733,-3405.57579508,0.0001764,2]
[403096589,1769154642744,-885.86649465,0.00017647,2]
[403096590,1769154642753,-1034.00491104,0.00017672,2]
[403096591,1769154642763,-250.0,0.00017699,2]
[403096592,1769154642771,-150.0,0.00017699,2]
[403096593,1769154642781,-150.0,0.00017699,2]
[403096594,1769154642790,-150.0,0.00017699,2]
[403096595,1769154642799,-150.0,0.00017699,2]
[403096596,1769154642808,-500.0,0.00017699,2]
[403096597,1769154642817,-150.0,0.00017699,2]
[403096598,1769154642826,-150.0,0.00017699,2]
[403096599,1769154642835,-296.63086669,0.00017699,2]
[403096600,1769154642844,-150.0,0.00017699,2]
[403096601,1769154642853,-250.0,0.00017699,2]
[403096602,1769154642862,-500.0,0.00017699,2]
[403096603,1769154642871,-150.0,0.00017699,2]
[403096604,1769154642882,-500.0,0.00017699,2]
[403096605,1769154642892,-500.0,0.00017699,2]
[403096606,1769154642902,-278.52110551,0.00017699,2]
[403096607,1769154642913,-500.0,0.00017699,2]
[403096608,1769154642922,-150.0,0.00017699,2]
[403096609,1769154642931,-150.0,0.00017699,2]
[403096610,1769154642940,-500.0,0.00017699,2]
[403096611,1769154642950,-500.0,0.00017699,2]
[403096612,1769154642959,-150.0,0.00017699,2]
[403096613,1769154642970,-150.0,0.00017699,2]
[403096614,1769154642980,-500.0,0.00017699,2]
[403096615,1769154642990,-500.0,0.00017699,2]
[403096616,1769154642998,-1600.0,0.000177,6]
[403096617,1769154643008,-1000.0,0.000177,2]
[403096618,1769154643017,-1034.00491104,0.00017717,2]
[403096619,1769154643027,-200.0,0.00017754,2]
[403096620,1769154643037,-243.58384155,0.00017754,2]
[403096621,1769154643048,-500.0,0.00017754,2]
[403096622,1769154643057,-150.0,0.00017754,2]
[403096623,1769154643066,-150.0,0.00017754,2]
[403096624,1769154643075,-500.0,0.00017754,2]
[403096625,1769154643084,-500.0,0.00017754,2]
[403096626,1769154643094,-500.0,0.00017754,2]
[403096627,1769154643103,-500.0,0.00017754,2]
[403096628,1769154643112,-150.0,0.00017754,2]
[403096629,1769154643122,-415.96044146,0.00017754,2]
[403096630,1769154643132,-500.0,0.00017754,2]
[403096631,1769154643142,-500.0,0.00017754,2]
[403096632,1769154643151,-500.0,0.00017754,2]
[403096633,1769154643160,-1034.00491104,0.00017763,2]
[403096634,1769154643169,-165.24,0.00017799,2]
[403096635,1769154643179,-1437.89490663,0.000178,2]
[403096636,1769154643189,-1600.0,0.000178,6]
[403096637,1769154643198,-500.0,0.00017808,2]
[403096638,1769154643211,-250.0,0.00017808,2]
[403096639,1769154643222,-1000.0,0.00017808,2]
[403096640,1769154643232,-500.0,0.00017809,2]
[403096641,1769154643242,-150.0,0.00017809,2]
[403096642,1769154643251,-150.0,0.00017809,2]
[403096643,1769154643260,-354.0,0.00017809,2]
[403096644,1769154643269,-500.0,0.00017809,2]
[403096645,1769154643278,-250.0,0.00017809,2]
[403096647,1769154643287,-200.0,0.00017809,2]
[403096649,1769154643296,-150.0,0.00017809,2]
[403096651,1769154643306,-508.7610726,0.00017809,2]
[403096653,1769154643315,-500.0,0.00017809,2]
[403096654,1769154643326,-500.0,0.00017809,2]
[403096655,1769154643336,-1034.00491104,0.00017809,2]
[403096656,1769154643346,-1139.862,0.00017809,2]
[403096657,1769154643355,-1247.78401762,0.00017814,2]
[403096658,1769154643364,-3292.92176436,0.00017814,2]
[403096659,1769154643373,-5809.10431482,0.00017814,2]
[403096660,1769154643383,-8690.07263527,0.00017814,2]
[403096661,1769154643394,-11757.9726,0.00017814,2]
[403096662,1769154643404,-1034.00491104,0.00017854,2]
[403096663,1769154643414,-200.0,0.00017855,2]
[403096664,1769154643423,-200.0,0.00017856,2]
[403096665,1769154643432,-200.0,0.00017856,2]
[403096666,1769154643442,-500.0,0.00017863,2]
[403096667,1769154643452,-500.0,0.00017863,2]
[403096668,1769154643462,-150.0,0.00017863,2]
[403096669,1769154643471,-150.0,0.00017863,2]
[403096670,1769154643481,-500.0,0.00017863,2]
[403096671,1769154643491,-150.0,0.00017863,2]
[403096672,1769154643500,-343.25248034,0.00017863,2]
[403096673,1769154643510,-500.0,0.00017863,2]
[403096674,1769154643519,-1000.0,0.00017864,2]
[403096675,1769154643528,-1034.00491104,0.000179,2]
[403096676,1769154643537,-10000.0,0.000179,2]
[403096677,1769154643547,-1000.0,0.000179,2]
[403096678,1769154643557,-2019.0,0.000179,6]
[403096679,1769154643566,-1029.03849237,0.000179,2]
[403096680,1769154643576,-2237.33304085,0.000179,2]
[403096681,1769154643585,-1376.02281178,0.000179,2]
[403096682,1769154643595,-3851.77931099,0.000179,2]
[403096683,1769154643604,-16771.38055874,0.000179,2]
[403096684,1769154643613,-5966.0,0.000179,2]
[403096685,1769154643622,-3385.2,0.00017909,2]
[403096686,1769154643632,-308.03994582,0.00017918,2]
[403096687,1769154643641,-500.0,0.00017918,2]
[403096688,1769154643650,-250.0,0.00017918,2]
[403096689,1769154643660,-236.48142665,0.00017918,2]
[403096690,1769154643669,-500.0,0.00017918,2]
[403096691,1769154643679,-203.21260792,0.00017918,2]
[403096692,1769154643688,-500.0,0.00017918,2]
[403096693,1769154643697,-500.0,0.00017973,2]
[403096694,1769154643706,-500.0,0.00017973,2]
[403096695,1769154643715,-500.0,0.00017973,2]
[403096696,1769154643724,-500.0,0.00017973,2]
[403096697,1769154643734,-150.0,0.00017973,2]
[403096698,1769154643744,-165.24,0.0001799,2]
[403096699,1769154643753,-151.0,0.00017997,2]
[403096700,1769154643762,-500.0,0.00017998,6]
[403096701,1769154643771,-150.0,0.00017999,2]
[403096702,1769154643781,-219.50243608,0.00017999,2]
[403096703,1769154643790,-144685.9148785,0.00017999,2]
[403096704,1769154643799,-20073.4465772,0.00017999,2]
[403096705,1769154643810,-482.8985368,0.00017999,2]
[403096706,1769154643819,-500.0,0.00017999,7]
[403096707,1769154643829,-500.0,0.00017999,8]
[403096708,1769154643838,-500.0,0.00017999,9]
[403096709,1769154643849,-500.0,0.00017999,10]
[403096710,1769154643859,-500.0,0.00017999,11]
[403096711,1769154643868,-187.44,0.00017999,12]
[403096712,1769154643878,-2416.3952846,0.00017999,2]
[403096713,1769154643887,-26195.633679,0.00017999,2]
[403096714,1769154643896,-8201.2779568,0.00017999,2]
[403096715,1769154643905,-1399.7728148,0.00017999,2]
[403096716,1769154643914,-300.0,0.00017999,2]
[403096717,1769154643923,-3413.37612,0.00017999,2]
[403096718,1769154643933,-300.0,0.00017999,2]
[403096719,1769154643942,-689.3219085,0.00017999,2]
[403096720,1769154643951,-1147239.77325678,0.00018,2]
[403096721,1769154643960,-1402.54871401,0.00018,2]
[403096722,1769154643973,-151.0,0.00018,2]
[403096723,1769154643983,-151.0,0.00018,2]
[403096724,1769154643992,-6089641.6697452,0.00018,2]
[403096725,1769154644853,-2171.68048968,0.00016399,2]
[403096726,1769154644862,-10959.39890324,0.00018,2]
[403096727,1769154645634,-151.0,0.00015685,2]
[403096728,1769154645643,-1577.51030214,0.00018,2]
[403096729,1769154645656,-670.92256706,0.00018,2]
[403096730,1769154645668,-547.44,0.00018,2]
[403096731,1769154645785,-5210.14308199,0.00018,2]
[403096732,1769154645797,-593.82396974,0.00018,2]
[403096733,1769154645826,-266.80887864,0.00018,2]
[403096734,1769154645837,-4022.57045668,0.00018,2]
[403096735,1769154645865,-14256.07698164,0.00018,2]
[403096736,1769154645876,-3967.51150966,0.00018,2]
[403096737,1769154645887,-558.18806716,0.00018,2]
[403096738,1769154645898,-1089.88117537,0.00018,2]
[403096781,1769154815800,1200.0,0.000149,5]
[403096787,1769154963267,-217.22059219,0.00015071,2]
[403096788,1769154969039,-180.14659574,0.00015071,2]
[403096789,1769154971094,-300.0,0.00015071,2]
[403096792,1769154974577,-300.0,0.00015071,2]
[403096793,1769154977271,-182.90599203,0.00015071,2]
[403096794,1769154979680,-169.88456738,0.00015071,2]
[403096795,1769154981797,-222.84735836,0.00015071,2]
[403096796,1769154983412,-410.43469677,0.00015071,2]
[403096800,1769154990114,-250.76580485,0.00015071,2]
[403096802,1769154994137,-191.61455368,0.00015071,2]
[403096808,1769155082750,-74.179839,0.00015071,2]
[403096809,1769155082774,-89.0040688,0.00015071,2]
[403096810,1769155086799,-289.00083386,0.00015071,2]
[403096811,1769155089080,-165.55834094,0.00015071,2]
[403096812,1769155093154,-250.0,0.00015071,2]
[403096813,1769155094742,-237.60161812,0.00015071,2]
[403096815,1769155096375,-183.86301736,0.00015071,2]
[403096816,1769155098415,-276.03722908,0.00015071,2]
[403096817,1769155101423,-280.24673508,0.00015071,2]
[403096818,1769155103747,-224.9970293,0.00015071,2]
[403096819,1769155105322,-222.33233815,0.00015071,2]
[403096820,1769155108136,-307.0706343,0.00015071,2]
[403096821,1769155109670,-253.16067858,0.00015071,2]
[403096822,1769155111193,-406.33370507,0.00015071,2]
[403096823,1769155113737,-45.96357136,0.00015071,2]
[403096824,1769155113761,-146.76311743,0.00015071,2]
[403096825,1769155117468,-162.30962503,0.00015071,2]
[403096826,1769155120210,-291.38098558,0.00015071,2]
[403096827,1769155121777,-386.21087292,0.00015071,2]
[403096828,1769155126570,-209.78581975,0.00015071,2]
[403096829,1769155129367,-188.37172442,0.00015071,2]
[403096830,1769155133189,-312.35978192,0.00015071,2]
[403096831,1769155134640,-289.93340482,0.00015071,2]
[403096832,1769155136623,-445.55790908,0.00015071,2]
[403096893,1769155248337,-67.32675905,0.00015071,2]
[403096894,1769155248362,-237.0033,0.00015071,2]
[403096895,1769155248387,-295.66994095,0.00015071,2]
[403096896,1769155253046,-161.94720577,0.00015071,2]
[403096897,1769155255184,-275.80053399,0.00015071,2]
[403096898,1769155258468,-176.79782439,0.00015071,2]
[403096899,1769155261177,-184.00139913,0.00015071,2]
[403096932,1769155264261,-195.98,0.0001507,2]
[403096949,1769155265872,-304.02,0.0001507,2]
[403096950,1769155265899,-17.68298352,0.0001507,2]
[403096964,1769155269890,-295.39932112,0.0001507,2]
[403096965,1769155272090,-151.41598863,0.0001507,2]
[403096966,1769155274139,-35.50170673,0.0001507,2]
[403096967,1769155274164,-228.85179595,0.0001507,2]
[403096968,1769155277328,-229.37692669,0.0001507,2]
[403096970,1769155279795,-41.77127736,0.0001507,2]
[403096971,1769155279821,-183.86044991,0.0001507,2]
[403096972,1769155281602,-316.13955009,0.0001507,2]
[403096973,1769155281630,-134.08672808,0.0001507,2]
[403096977,1769155285299,-340.09258437,0.0001507,2]
[403096978,1769155287318,-25.82068755,0.0001507,2]
[403096979,1769155287345,-451.07962067,0.0001507,2]
[403096981,1769155288886,-48.92037933,0.0001507,2]
[403096982,1769155288913,-204.26657361,0.0001507,2]
[403096983,1769155291639,-217.05187497,0.0001507,2]
[403096985,1769155295737,-189.805,0.00014868,2]
[403096986,1769155295764,-13.16704716,0.00014868,2]
[403096987,1769155302004,-297.20141665,0.00014868,2]
[403096988,1769155304543,-327.80801527,0.00014868,2]
[403096989,1769155305819,-200.94052092,0.00014868,2]
[403096990,1769155306252,-78.68155142,0.0001507,2]
[403096991,1769155306280,-175.19705742,0.0001507,2]
[403096997,1769155387176,171.9,0.00014739,2]
[403096998,1769155416919,4331.92,0.00014667,2]
[403097006,1769155544388,472.0,0.000127,5]
[403097007,1769155614837,824.24,0.00014645,2]
[403097008,1769155626469,1400.0,0.000149,5]
[403097012,1769155753898,1909.08,0.00014501,2]
[403097013,1769155773927,-372.48748467,0.00015036,2]
[403097014,1769155777303,-127.51251533,0.00015036,2]
[403097015,1769155777325,-250.0,0.00015036,2]
[403097016,1769155777346,-44.60425479,0.00015036,2]
[403097017,1769155781536,-105.39574521,0.00015036,2]
[403097018,1769155781558,-98.56998084,0.00015036,2]
[403097019,1769155783687,-51.43001916,0.00015036,2]
[403097020,1769155783710,-285.63722815,0.00015036,2]
[403097021,1769155790125,-163.83968361,0.0001497,2]
[403097022,1769155791689,-449.68701886,0.0001497,2]
[403097023,1769155797430,-165.28823813,0.0001497,2]
[403097024,1769155799067,-188.4327386,0.0001497,2]
[403097025,1769155800683,-177.94743589,0.0001497,2]
[403097026,1769155801206,300.0,0.00014969,2]
[403097027,1769155801368,300.0,0.00014969,2]
[403097028,1769155801541,1200.0,0.00014969,2]
[403097029,1769155810036,-173.87026014,0.0001497,2]
[403097030,1769155811271,2791.84,0.0001496,2]
[403097031,1769155811807,2791.84,0.0001496,2]
[403097032,1769155814686,-171.45407407,0.0001497,2]
[403097033,1769155818830,-496.47191495,0.0001497,2]
[403097034,1769155820577,404.63,0.0001496,2]
[403097035,1769155820778,404.63,0.0001496,2]
[403097036,1769155822577,-302.19129105,0.0001497,2]
[403097037,1769155824766,-245.70075882,0.0001497,2]
[403097038,1769155830811,-188.37920448,0.0001497,2]
[403097039,1769155831762,-1491.53744342,0.0001497,2]
[403097040,1769155831774,-883.1256008,0.0001497,2]
[403097041,1769155831785,-428.83006423,0.0001497,2]
[403097042,1769155831796,-1748.22741199,0.0001497,2]
[403097043,1769155831818,-23156.23920367,0.0001497,2]
[403097044,1769155831871,-298.02975,0.0001497,2]
[403097045,1769155831943,-1961.94354208,0.0001497,2]
[403097046,1769155831983,-743491.6651314,0.0001497,2]
[403097047,1769155831995,-22199.25540966,0.0001497,2]
[403097048,1769155832006,-148015.31972415,0.0001497,2]
[403097049,1769155832016,-214.36277185,0.00015036,2]
[403097050,1769155832025,-500.0,0.00015036,2]
[403097051,1769155832034,-150.0,0.00015036,2]
[403097052,1769155832044,-150.0,0.00015036,2]
[403097053,1769155832053,-150.0,0.00015036,2]
[403097054,1769155832062,-500.0,0.00015036,2]
[403097055,1769155832072,-150.0,0.00015036,2]
[403097056,1769155832081,-150.0,0.00015036,2]
[403097057,1769155832090,-150.0,0.00015036,2]
[403097058,1769155832100,-300.0,0.0001505,2]
[403097059,1769155832109,-300.0,0.0001505,2]
[403097060,1769155832119,-250.0,0.0001505,2]
[403097061,1769155832128,-157.68395652,0.00015051,2]
[403097062,1769155832137,-3796.6259399,0.00015051,2]
[403097063,1769155832146,-3111.9854412,0.00015051,2]
[403097064,1769155832155,-5616.4215416,0.00015051,2]
[403097065,1769155832165,-2238.2700503,0.00015051,2]
[403097066,1769155832175,-6855.44292991,0.00015061,2]
[403097067,1769155832184,-500.0,0.00015068,2]
[403097068,1769155832194,-500.0,0.00015068,2]
[403097069,1769155832203,-463.24263572,0.00015068,2]
[403097070,1769155832212,-500.0,0.00015068,2]
[403097071,1769155832221,-500.0,0.00015068,2]
[403097072,1769155832230,-500.0,0.00015068,2]
[403097073,1769155832239,-500.0,0.00015068,2]
[403097074,1769155832248,-500.0,0.00015068,2]
[403097075,1769155832257,-500.0,0.00015068,2]
[403097076,1769155832267,-500.0,0.00015068,2]
[403097077,1769155832276,-500.0,0.00015068,2]
[403097078,1769155832289,-500.0,0.00015068,2]
[403097079,1769155832299,-500.0,0.00015068,2]
[403097080,1769155832309,-500.0,0.00015068,2]
[403097081,1769155832319,-500.0,0.00015068,2]
[403097082,1769155832329,-500.0,0.00015068,2]
[403097083,1769155832339,-579.75,0.0001507,2]
[403097084,1769155832348,-6324.24629483,0.00015071,2]
[403097085,1769155832361,-391.24760517,0.00015071,2]
[403097086,1769155832371,-1243.854,0.00015071,2]
[403097087,1769155832380,-2629.9872,0.00015071,2]
[403097088,1769155832391,-151.0,0.00015071,2]
[403097089,1769155832400,-151.0,0.00015071,2]
[403097090,1769155832410,-500.0,0.00015091,2]
[403097091,1769155832420,-150.0,0.00015091,2]
[403097092,1769155832430,-500.0,0.00015091,2]
[403097093,1769155832440,-415.96044146,0.00015091,2]
[403097094,1769155832454,-150.0,0.00015091,2]
[403097095,1769155832464,-500.0,0.00015091,2]
[403097096,1769155832474,-200.0,0.00015091,2]
[403097097,1769155832484,-200.0,0.00015146,2]
[403097098,1769155832494,-150.0,0.00015146,2]
[403097099,1769155832504,-508.7610726,0.00015146,2]
[403097100,1769155832513,-150.0,0.00015146,2]
[403097101,1769155832523,-500.0,0.00015146,2]
[403097102,1769155832533,-4851.2865406,0.00015167,2]
[403097103,1769155832542,-6154.59535332,0.00015167,2]
[403097104,1769155832551,-1947.25197001,0.00015167,2]
[403097105,1769155832561,-1524.0579636,0.00015167,2]
[403097106,1769155832571,-372.20201477,0.0001517,2]
[403097107,1769155832581,-213.54749875,0.0001517,2]
[403097108,1769155832590,-500.0,0.0001517,2]
[403097109,1769155832600,-500.0,0.0001517,2]
[403097110,1769155832610,-512.99251201,0.0001517,2]
[403097111,1769155832620,-184.6470205,0.0001517,2]
[403097112,1769155832631,-500.0,0.0001517,2]
[403097113,1769155832641,-500.0,0.0001517,2]
[403097114,1769155832650,-500.0,0.0001517,2]
[403097115,1769155832660,-500.0,0.0001517,2]
[403097116,1769155832674,-500.0,0.0001517,2]
[403097117,1769155832684,-500.0,0.0001517,2]
[403097118,1769155832693,-150.0,0.000152,2]
[403097119,1769155832703,-150.0,0.000152,2]
[403097120,1769155832713,-343.25248034,0.000152,2]
[403097121,1769155832723,-203.21260792,0.00015255,2]
[403097122,1769155832732,-150.0,0.00015255,2]
[403097123,1769155832743,-150.0,0.00015267,2]
[403097124,1769155832754,-1000.0,0.00015267,2]
[403097125,1769155832764,-250.0,0.0001531,2]
[403097126,1769155832774,-20009.02,0.0001531,2]
[403097127,1769155832784,-452.11,0.0001531,2]
[403097128,1769155832795,-999.99,0.0001531,2]
[403097129,1769155832805,-9999.99,0.0001531,2]
[403097130,1769155832816,-9999.99,0.0001531,2]
[403097131,1769155832826,-297.59,0.0001531,2]
[403097132,1769155832836,-1258.35,0.0001531,2]
[403097133,1769155832846,-9146.96864452,0.0001531,2]
[403097138,1769155838007,-853.02135548,0.0001531,2]
[403097139,1769155838016,-921.1907311,0.0001531,2]
[403097140,1769155838027,-4078.7992689,0.0001531,2]
[403097141,1769155838037,-9999.99,0.0001531,2]
[403097142,1769155838047,-579.75,0.00015344,2]
[403097143,1769155838056,-421.79979465,0.00015344,2]
[403097144,1769155838066,-1247.78401762,0.00015354,2]
[403097145,1769155838075,-824.24,0.00015378,2]
[403097146,1769155838084,-150.0,0.00015463,2]
[403097147,1769155838093,-150.0,0.00015463,2]
[403097148,1769155838102,-250.0,0.00015463,2]
[403097149,1769155838111,-296.63086669,0.00015463,2]
[403097150,1769155838120,-500.0,0.00015463,2]
[403097151,1769155838129,-150.0,0.00015463,2]
[403097152,1769155838139,-4851.28654055,0.00015471,2]
[403097153,1769155838148,-150.0,0.00015518,2]
[403097154,1769155838156,-500.0,0.00015518,2]
[403097155,1769155838165,-1947.25197,0.00015557,2]
[403097156,1769155838175,-150.0,0.00015573,2]
[403097157,1769155838184,-354.0,0.00015573,2]
[403097158,1769155838194,-579.75,0.00015618,2]
[403097159,1769155838203,-150.0,0.00015627,2]
[403097160,1769155838213,-278.52110551,0.00015671,2]
[403097161,1769155838222,-500.0,0.00015671,2]
[403097162,1769155838231,-236.48142665,0.00015682,2]
[403097164,1769155838240,-500.0,0.00015726,2]
[403097166,1769155838249,-168.88,0.00015728,2]
[403097168,1769155838259,-256.0,0.00015734,2]
[403097170,1769155838268,-168.88,0.0001577,2]
[403097172,1769155838277,-4851.28654055,0.00015774,2]
[403097174,1769155838286,-500.0,0.00015781,2]
[403097176,1769155838295,-168.88,0.00015811,2]
[403097179,1769155838305,-419.73,0.00015814,2]
[403097181,1769155838315,-500.0,0.00015835,2]
[403097183,1769155838325,-168.88,0.00015852,2]
[403097185,1769155838334,-150.0,0.0001589,2]
[403097187,1769155838344,-500.0,0.0001589,2]
[403097189,1769155838353,-150.0,0.0001589,2]
[403097191,1769155838363,-500.0,0.0001589,2]
[403097193,1769155838372,-579.75,0.00015892,2]
[403097195,1769155838382,-168.88,0.00015894,2]
[403097197,1769155838391,-2900.0,0.000159,5]
[403097199,1769155838402,-553.59,0.00015918,2]
[403097201,1769155838412,-168.88,0.00015935,2]
[403097203,1769155838422,-243.58384155,0.00015945,2]
[403097205,1769155838433,-500.0,0.00015945,2]
[403097207,1769155838446,-150.0,0.00015945,2]
[403097209,1769155838457,-500.0,0.00015945,2]
[403097211,1769155838468,-1947.25197,0.00015948,2]
[403097213,1769155838478,-1884.4781351,0.0001596,2]
[403097215,1769155838488,-168.88,0.00015976,2]
[403097217,1769155838498,-500.0,0.00016,2]
[403097219,1769155838509,-150.0,0.00016,2]
[403097221,1769155838519,-500.0,0.00016,2]
[403097222,1769155838529,-158.0,0.00016009,2]
[403097224,1769155838539,-166.0,0.00016009,2]
[403097226,1769155838548,-158.0,0.00016009,2]
[403097228,1769155838558,-166.0,0.00016009,2]
[403097230,1769155838567,-158.0,0.00016009,2]
[403097231,1769155838576,-168.88,0.00016018,2]
[403097233,1769155838585,-500.0,0.00016054,2]
[403097234,1769155838594,-150.0,0.00016054,2]
[403097235,1769155838604,-500.0,0.00016055,2]
[403097236,1769155838613,-168.88,0.00016059,2]
[403097237,1769155838623,-4851.28654055,0.00016078,2]
[403097238,1769155838634,-168.88,0.00016101,2]
[403097239,1769155838643,-500.0,0.00016109,2]
[403097240,1769155838653,-250.0,0.00016109,2]
[403097241,1769155838662,-500.0,0.00016109,2]
[403097242,1769155838671,-824.24,0.0001611,2]
[403097243,1769155838680,-168.88,0.00016142,2]
[403097244,1769155838690,-500.0,0.00016164,2]
[403097245,1769155838699,-500.0,0.00016164,2]
[403097246,1769155838708,-579.75,0.00016166,2]
[403097247,1769155838718,-510.0,0.00016179,2]
[403097248,1769155838727,-168.88,0.00016183,2]
[403097249,1769155838737,-15000.0,0.000162,2]
[403097250,1769155838746,-296.07771807,0.00016219,2]
[403097251,1769155838755,-168.88,0.00016225,2]
[403097252,1769155838766,-168.88,0.00016266,2]
[403097253,1769155838776,-1524.05796358,0.00016301,2]
[403097254,1769155838786,-168.88,0.00016308,2]
[403097255,1769155838795,-1034.00491107,0.00016338,2]
[403097256,1769155838804,-1947.25197,0.00016338,2]
[403097257,1769155838814,-168.88,0.00016349,2]
[403097258,1769155838823,-3292.92176436,0.00016354,2]
[403097259,1769155838833,-5809.10431482,0.00016354,2]
[403097260,1769155838842,-8690.07263527,0.00016354,2]
[403097261,1769155838852,-11757.9726,0.00016354,2]
[403097262,1769155838861,-171.52,0.00016355,2]
[403097263,1769155838872,-151.0,0.00016379,2]
[403097264,1769155838882,-4851.28654055,0.00016382,2]
[403097265,1769155838892,-420.0,0.00016383,2]
[403097266,1769155838901,-168.88,0.0001639,2]
[403097267,1769155838910,-231.36816951,0.00016428,2]
[403097268,1769155838920,-168.88,0.00016432,2]
[403097269,1769155838929,-626.44749548,0.00016438,2]
[403097270,1769155838938,-500.0,0.00016438,2]
[403097271,1769155838948,-500.0,0.00016438,2]
[403097272,1769155838957,-500.0,0.00016438,2]
[403097273,1769155838967,-500.0,0.00016438,2]
[403097274,1769155838977,-500.0,0.00016438,2]
[403097275,1769155838986,-500.0,0.00016438,2]
[403097276,1769155838995,-500.0,0.00016438,2]
[403097277,1769155839005,-500.0,0.00016438,2]
[403097278,1769155839014,-500.0,0.00016438,2]
[403097279,1769155839024,-500.0,0.00016438,2]
[403097280,1769155839033,-500.0,0.00016438,2]
[403097281,1769155839043,-500.0,0.00016438,2]
[403097282,1769155839052,-500.0,0.00016438,2]
[403097283,1769155839061,-500.0,0.00016438,2]
[403097284,1769155839070,-500.0,0.00016438,2]
[403097285,1769155839079,-500.0,0.00016438,2]
[403097286,1769155839089,-500.0,0.00016438,2]
[403097287,1769155839098,-500.0,0.00016438,2]
[403097288,1769155839107,-500.0,0.00016438,2]
[403097289,1769155839117,-500.0,0.00016438,2]
[403097290,1769155839128,-500.0,0.00016438,2]
[403097291,1769155839138,-500.0,0.00016438,2]
[403097292,1769155839148,-500.0,0.00016438,2]
[403097293,1769155839158,-500.0,0.00016438,2]
[403097294,1769155839168,-500.0,0.00016438,2]
[403097295,1769155839178,-500.0,0.00016438,2]
[403097296,1769155839187,-500.0,0.00016438,2]
[403097297,1769155839197,-500.0,0.00016438,2]
[403097298,1769155839207,-500.0,0.00016438,2]
[403097299,1769155839216,-500.0,0.00016438,2]
[403097300,1769155839227,-350.34970999,0.00016438,2]
[403097301,1769155839236,-500.0,0.00016438,2]
[403097302,1769155839245,-500.0,0.00016438,2]
[403097303,1769155839255,-500.0,0.00016438,2]
[403097304,1769155839264,-800.0,0.00016438,2]
[403097305,1769155839273,-579.76,0.0001644,2]
[403097306,1769155839282,-165.24,0.0001644,2]
[403097307,1769155839292,-1680.0,0.00016466,2]
[403097308,1769155839301,-300.0,0.00016467,2]
[403097309,1769155839310,-168.88,0.00016473,2]
[403097310,1769155839319,-500.0,0.00016493,2]
[403097311,1769155839329,-168.88,0.00016515,2]
[403097312,1769155839338,-553.59,0.00016515,2]
[403097313,1769155839348,-228.53,0.00016533,2]
[403097314,1769155839357,-250.0,0.00016548,2]
[403097315,1769155839366,-193.0,0.00016554,2]
[403097316,1769155839377,-195.0,0.00016555,2]
[403097317,1769155839387,-300.0,0.00016555,2]
[403097318,1769155839396,-200.0,0.00016555,2]
[403097319,1769155839405,-195.0,0.00016555,2]
[403097320,1769155839415,-250.0,0.00016555,2]
[403097321,1769155839424,-300.0,0.00016555,2]
[403097322,1769155839434,-2500.0,0.00016555,2]
[403097323,1769155839444,-1034.00491104,0.00016598,2]
[403097324,1769155839456,-4851.28654055,0.00016685,2]